Cogmind - Beta 16 @@@ ROGUE MODE // 2025.12.14 @ 13:26:15 Player: TheDoorMatt Result: Destroyed by G-34 Mercenary with Small Laser Performance ------------- Evolutions (1) 500 Regions Visited (4) 800 Robots Destroyed (19) 95 Value Destroyed (529) 529 Prototype IDs (0) 0 Alien Tech Used (0) 0 Bonus (0) 0 TOTAL SCORE: 1924 Bonus ------- None Cogmind --------- Core Integrity 0/400 Matter 193/300 Energy 121/125 System Corruption 0% Temperature Cool (8) Movement Treading (160) Location -9/Storage Parts ------- > --- POWER (1) -------- Light Ion Engine > --- PROPULSION (2) --- Light Treads Light Treads > --- UTILITY (4) ------ Small Storage Unit Visual Processing Unit Drone Bay (1/2) > --- WEAPON (2) ------- (None) > --- INVENTORY (8) ---- Aluminum Leg Aluminum Leg Drone Bay (2/2) Peak State ------------ > --- POWER ------------ Ion Engine > --- PROPULSION ------- Light Treads Light Treads > --- UTILITY ---------- Small Storage Unit Visual Processing Unit Sensor Array Seismic Detector > --- WEAPON ----------- Assault Rifle Rocket Launcher > --- INVENTORY -------- Light Ion Engine Aluminum Leg Aluminum Leg Drone Bay Drone Bay [Rating: 12] Favorites ----------- Power Ion Engine Engine Ion Engine Propulsion Light Treads Treads Light Treads Utility Small Storage Unit Device Sensor Array Storage Small Storage Unit Processor Visual Processing Unit Weapon Assault Rifle Ballistic Gun Assault Rifle Launcher Rocket Launcher Build | -11 -10 -10 -9 -9 ------- Run | Yrd Mat Min Mat Sto Slots Evolved 2 | . . . 2 . Power . | . . . . . Propulsion . | . . . . . Utility 2 | . . . 2 . Weapon . | . . . . . Parts Attached 15 | 5 . . 4 6 Power 3 | 1 . . . 2 Engine 3 | 1 . . . 2 Core . | . . . . . Reactor . | . . . . . Propulsion 4 | 2 . . . 2 Treads 4 | 2 . . . 2 Leg . | . . . . . Wheel . | . . . . . Hover . | . . . . . Flight . | . . . . . Utility 5 | 1 . . 3 1 Device 3 | . . . 2 1 Storage 1 | 1 . . . . Processor 1 | . . . 1 . Hackware . | . . . . . Protection . | . . . . . Artifact . | . . . . . Weapon 3 | 1 . . 1 1 Energy Gun . | . . . . . Energy Cannon . | . . . . . Ballistic Gun 2 | 1 . . . 1 Ballistic Cannon . | . . . . . Launcher 1 | . . . 1 . Special Weapon . | . . . . . Impact Weapon . | . . . . . Slashing Weapon . | . . . . . Piercing Weapon . | . . . . . Special Melee Weapon . | . . . . . Unidentified Prototypes . | . . . . . Parts Lost 8 | . . . . 8 Power 1 | . . . . 1 Propulsion 2 | . . . . 2 Utility 2 | . . . . 2 Weapon 3 | . . . . 3 Highest Loss Streak 6 | . . . . 6 To Critical Strikes . | . . . . . Average Backups 5 | 3 5 7 5 5 Power 1 | . 1 2 2 . Propulsion 2 | 3 2 2 2 2 Utility 1 | . 1 3 . 1 Weapon . | . . . . . Tool/Special . | . . . . . Unused Backups 3 | . . . . 3 Power . | . . . . . Propulsion 2 | . . . . 2 Utility 1 | . . . . 1 Weapon . | . . . . . Tool/Special . | . . . . . Average Slot Usage (%) 81 | . 71 71 87 78 Engine 11 | . 14 14 11 8 Treads 22 | . 28 28 22 19 Device 15 | . . . 21 18 Storage 11 | . 14 14 11 11 Processor 8 | . . . 10 11 Ballistic Gun 11 | . 14 14 11 9 Peak Build Rating 12 | 5 5 6 11 12 Average Rating 7 | 3 5 5 9 9 On Entrance 5 | . 5 5 6 9 Avg Prop Armor Cover (%) . | . . . . . Naked Turns . | . . . . . Heaviest Build 15 | 12 12 12 14 15 Greatest Support 40 | 40 40 40 40 40 Greatest Overweight (x) 3 | 3 . . . 2 Average Overweight (x) . | 1 . . . . Largest Inventory Capacity 8 | 8 8 8 8 8 Average Capacity 7 | 7 8 8 8 8 Most Carried 8 | 6 7 8 7 7 Average Carried 5 | 4 5 7 4 5 Final Capacity 8 | 8 8 8 8 8 Final Carried 8 | 3 7 8 5 3 Class Distribution -------------------- 96% | Mutant 3% | Scavenger-Mutant Dominant Class ---------------- Mutant | -10/Materials Mutant | -10/Mines Mutant | -9/Materials Mutant | -9/Storage Resources | -11 -10 -10 -9 -9 ----------- Run | Yrd Mat Min Mat Sto Matter Collected 547 | 274 3 . 102 168 Remotely . | . . . . . Salvage Created 534 | 107 71 . 145 211 Parts 26 | 5 2 . 6 13 Haulers Intercepted . | . . . . . Recyclers Shooed 1 | 1 . . . . Parts Field Recycled . | . . . . . Retrieved Matter . | . . . . . Parts Self-Destructed . | . . . . . Prevented . | . . . . . Parts Restored . | . . . . . Kills | -11 -10 -10 -9 -9 ------- Run | Yrd Mat Min Mat Sto Combat Hostiles Destroyed 14 | . . . 5 9 Guns 6 | . . . 1 5 AOE 8 | . . . 4 4 Classes Destroyed 5 | 2 . . 2 1 Worker 3 | 1 . . 1 1 Recycler 2 | 1 1 . . . Swarmer 3 | . . . . 3 Grunt 4 | . . . 4 . Sentry 7 | . . . 1 6 Best Kill Streak 6 | 2 1 . 5 6 Combat Bots Only 5 | . . . 4 5 Max Kills in Single Turn 3 | 1 1 . 3 2 Gunslinging . | . . . . . Exploded 3 | . . . 3 2 Melee . | . . . . . Uniques/NPCs Destroyed . | . . . . . Combat | -11 -10 -10 -9 -9 -------- Run | Yrd Mat Min Mat Sto Hostile Shots Fired 158 | . . . 39 119 Missed 48 | . . . 12 36 Hits 110 | . . . 27 83 Projectile 110 | . . . 27 83 Critical Strikes 4 | . . . . 4 Damage Taken 1434 | . . . 345 1089 Core 400 | . . . 75 325 Absorbed by Shields . | . . . . . Core Remaining (%) 100 | 100 . 100 . . Volleys Fired 68 | 8 1 3 13 43 Largest 2 | 1 1 1 2 2 Hottest 53 | 20 20 20 53 53 Shots Fired 74 | 8 1 3 16 46 Gun 58 | 8 1 3 13 33 Cannon . | . . . . . Launcher 16 | . . . 3 13 Special . | . . . . . Kinetic 58 | 8 1 3 13 33 Thermal . | . . . . . Explosive 16 | . . . 3 13 Electromagnetic . | . . . . . Robot Hit Streak 14 | 4 3 4 9 14 Robot Miss Streak 2 | 2 . 1 2 2 Penetration Max . | . . . . . Secondary Targets . | . . . . . Shots Hit Robots 55 | 6 1 1 11 36 Core Hits 39 | 3 1 . 11 24 Critical Kills . | . . . . . Critical Parts Destroyed . | . . . . . Critical Strikes . | . . . . . Melee Attacks . | . . . . . Impact . | . . . . . Slashing . | . . . . . Piercing . | . . . . . Sneak Attacks . | . . . . . Combat Hostiles . | . . . . . Follow-up Attacks . | . . . . . Damage Inflicted 1483 | 77 15 10 657 724 Guns 487 | 77 15 10 107 278 Cannons . | . . . . . Explosions 996 | . . . 550 446 Melee . | . . . . . Ramming . | . . . . . Kinetic 487 | 77 15 10 107 278 Thermal . | . . . . . Explosive 996 | . . . 550 446 Electromagnetic . | . . . . . Impact . | . . . . . Slashing . | . . . . . Piercing . | . . . . . Highest Corruption . | . . . . . Average Corruption . | . . . . . Corruption Purged . | . . . . . Corruption Blocked . | . . . . . Overload Shots . | . . . . . Overflow Damage 16 | . . . 8 8 Projectiles . | . . . . . Explosions 16 | . . . 8 8 Melee . | . . . . . Knockbacks . | . . . . . Impact . | . . . . . Kinetic . | . . . . . Secondary . | . . . . . Self-Inflicted Damage 70 | . . . . 70 Shots 3 | . . . . 3 Rammed . | . . . . . Targets Rammed . | . . . . . Kicked . | . . . . . Crushed . | . . . . . Highest Temperature 21 | . . . 12 21 Average Temperature 7 | . . . 7 7 Received Heat Transfer 585 | . . . 129 456 Siege Activations . | . . . . . Martial Activations . | . . . . . Shielding Activations . | . . . . . Robots Disrupted . | . . . . . Combat Hostiles . | . . . . . Robots Corrupted . | . . . . . Combat Hostiles . | . . . . . Parts Fried . | . . . . . Impact Corruptions . | . . . . . Robots Melted . | . . . . . Combat Hostiles . | . . . . . Parts Melted . | . . . . . Heat Transferred . | . . . . . Parts Sabotaged . | . . . . . Parts Stolen . | . . . . . Parts Stripped . | . . . . . Power Chain Reactions . | . . . . . Alert | -11 -10 -10 -9 -9 ------- Run | Yrd Mat Min Mat Sto Maximum Alert Level . | . . . . . Low Security (%) 100 | 100 100 100 100 100 Level 1 . | . . . . . Level 2 . | . . . . . Level 3 . | . . . . . Level 4 . | . . . . . Level 5 . | . . . . . High Security . | . . . . . Max Security . | . . . . . Peak Influence 166 | 5 5 . 129 166 Initial 44 | . 3 . . 44 Average 18 | . 1 . 10 61 Influence Increases 524 | 10 5 . 167 342 Destroy 0b10 Robot/C 280 | . . . 100 180 Destroy 0b10 Robot/NC 30 | 10 5 . 10 5 Destroy Leader 92 | . . . 32 60 Successful Hack 18 | . . . 7 11 Disable Machine 30 | . . . . 30 Destroy Structure 74 | . . . 18 56 Influence Decreases 434 | 5 10 . 62 357 Entered New Map 63 | . 2 . . 61 Time Decay 281 | 5 8 . 62 206 Lost Part 80 | . . . . 80 Lost Ally 10 | . . . . 10 Squads Dispatched 5 | . 1 . 2 2 Investigation . | . . . . . Extermination . | . . . . . Reinforcement 3 | . 1 . 2 . Assault . | . . . . . Garrison 2 | . . . . 2 Intercept . | . . . . . Searches Triggered . | . . . . . Construction Impeded . | . . . . . Haulers Reinforced . | . . . . . Active Scanning Responses . | . . . . . Cargo Convoy Interrupts . | . . . . . Stealth | -11 -10 -10 -9 -9 --------- Run | Yrd Mat Min Mat Sto Distress Signals 6 | . . . 3 3 Communications Jammed . | . . . . . Distress Signals . | . . . . . Times Spotted 38 | . 1 . 18 19 Peak Tracking Total 7 | . 1 . 7 5 Tactical Retreats . | . . . . . Traps | -11 -10 -10 -9 -9 ------- Run | Yrd Mat Min Mat Sto Traps Triggered . | . . . . . Indirectly . | . . . . . Trap Hack Attempts . | . . . . . Triggered . | . . . . . Disarmed . | . . . . . Reprogrammed . | . . . . . Reused . | . . . . . Traps Extracted . | . . . . . Installed . | . . . . . Triggered . | . . . . . Machines | -11 -10 -10 -9 -9 ---------- Run | Yrd Mat Min Mat Sto Machines Disabled 2 | . . . . 2 Max in Single Turn 2 | . . . . 2 Machines Repaired . | . . . . . Machines Dismantled . | . . . . . Machines Sabotaged . | . . . . . Overloaded Fab Kills . | . . . . . Hacking | -11 -10 -10 -9 -9 --------- Run | Yrd Mat Min Mat Sto Machines Accessed 4 | . . . 1 3 Terminals 4 | . . . 1 3 Fabricators . | . . . . . Repair Stations . | . . . . . Recycling Units . | . . . . . Scanalyzers . | . . . . . Garrison Access . | . . . . . Total Hacks 12 | . . . 2 10 Successful 8 | . . . 1 7 Failed 3 | . . . 1 2 Catastrophic . | . . . . . Database Lockouts 1 | . . . . 1 Manual . | . . . . . Terminals 12 | . . . 2 10 Fabricators . | . . . . . Repair Stations . | . . . . . Recycling Units . | . . . . . Scanalyzers . | . . . . . Garrison Access . | . . . . . Terminal Hacks 8 | . . . 1 7 Record 5 | . . . . 5 Open Door 1 | . . . . 1 Recall Investigation 1 | . . . 1 . Zone Layout 1 | . . . . 1 Fabricator Hacks . | . . . . . Repair Station Hacks . | . . . . . Recycling Unit Hacks . | . . . . . Scanalyzer . | . . . . . Garrison Access Hacks . | . . . . . Unauthorized Hacks . | . . . . . Terminals . | . . . . . Fabricators . | . . . . . Repair Stations . | . . . . . Recycling Units . | . . . . . Scanalyzers . | . . . . . Garrison Access . | . . . . . Data Cores Recovered . | . . . . . Used . | . . . . . Hacking Detections 3 | . . . 1 2 Full Trace Events . | . . . . . Feedback Events . | . . . . . Feedback Blocked . | . . . . . Robot Schematics Acquired . | . . . . . Robots Built . | . . . . . Authchips . | . . . . . Time . | . . . . . Total Robot Build Rating . | . . . . . Part Schematics Acquired . | . . . . . Parts Built . | . . . . . Authchips . | . . . . . Time . | . . . . . Total Part Build Rating . | . . . . . Part Studies Acquired . | . . . . . Parts Repaired . | . . . . . Time . | . . . . . Parts Recycled . | . . . . . Recycled Matter . | . . . . . Retrieved Matter . | . . . . . Retrieved Components . | . . . . . Parts Scanalyzed . | . . . . . Part Schematics Acquired . | . . . . . Parts Damaged . | . . . . . Bothacking | -11 -10 -10 -9 -9 ------------ Run | Yrd Mat Min Mat Sto Used RIF Installer . | . . . . . Robots Hacked . | . . . . . Non-combat . | . . . . . Combat . | . . . . . Robot Hacks Applied . | . . . . . Relay Couplers Released . | . . . . . Fabnet Peak Effective % . | . . . . . Robots Rewired . | . . . . . Allies Hacked . | . . . . . Hacks Repelled . | . . . . . Allies | -11 -10 -10 -9 -9 -------- Run | Yrd Mat Min Mat Sto Total Allies 1 | . . 1 . . Largest Group 1 | . . . 1 . Highest-Rated Group 31 | . . . 31 . Highest-Rated Ally 31 | . . . 31 . Total Orders . | . . . . . Ally Attacks 4 | . . . 4 . Total Damage 43 | . . . 43 . Kills 1 | . . . 1 . Allies Corrupted . | . . . . . Allies Melted . | . . . . . Intel | -11 -10 -10 -9 -9 ------- Run | Yrd Mat Min Mat Sto Active Infowar (turns) 1387 | . . . 963 424 Optics 1385 | . . . 961 424 Sensors 593 | . . . 520 73 Seismic 1252 | . . . 962 290 Robot Analysis Total . | . . . . . Derelict Logs Recovered 1 | . . 1 . . Drone Launches 3 | . . . . 3 Drone Recoveries 2 | . . . . 2 Exploration | -11 -10 -10 -9 -9 ------------- Run | Yrd Mat Min Mat Sto Turns Passed 1950 | 135 73 355 963 424 Spaces Moved 708 | 68 41 218 208 173 Core 59 | 55 . . . 4 Treads 649 | 13 41 218 208 169 Legs . | . . . . . Wheels . | . . . . . Hover . | . . . . . Flight . | . . . . . Fastest Speed 50 | 50 160 160 160 150 Average Speed 159 | 159 160 160 160 159 Slowest Speed 200 | 200 160 160 160 160 Overloaded Moves . | . . . . . Propulsion Burnouts . | . . . . . Robots Hopped . | . . . . . Potential Cave-ins . | . . . . . Cave-ins Triggered . | . . . . . Exploration Rate (%) 26 | 5 13 59 26 29 Regions Visited 4 Branch Regions 2 Pre-discovered Areas . | . . . . . Known Exits Taken . | . . . . . Unknown Exits Taken 4 | 1 1 1 1 . Scrap Searched . | . . . . . Spaces Dug . | . . . . . Terrain Destroyed 85 | . . . 16 69 Melee . | . . . . . Projectile . | . . . . . AOE 85 | . . . 16 69 Terrain Rammed . | . . . . . Walls Destroyed . | . . . . . Machines Disabled . | . . . . . Actions | -11 -10 -10 -9 -9 --------- Run | Yrd Mat Min Mat Sto Total 1456 | 86 48 221 823 278 Wait 650 | . 3 . 598 49 Move 704 | 67 40 217 207 173 Hop . | . . . . . Pick Up 14 | 6 4 1 . 3 Fast Attach 4 | 2 . . . 2 Attach 13 | 3 . . 4 6 Detach 2 | . . . 1 1 Swap . | . . . . . Drop 1 | . . . . 1 Fire 68 | 8 1 3 13 43 Melee . | . . . . . Ram . | . . . . . Kick . | . . . . . Crush . | . . . . . Escape Stasis . | . . . . . Rewire . | . . . . . Trap . | . . . . . Miscellaneous . | . . . . . Route ------- -11/Scrapyard -10/Materials -10/Mines -9/Materials (discovered 2 exits: [*Mat] / *Sto) -9/Storage History --------- Turn | Location | Event 5 | -11/Scrapyard | Discovered new exit (range 14) 136 | -11/Scrapyard | Entered Materials 137 | -10/Materials | Met a group of wandering Federalists 164 | -10/Materials | Discovered new exit (range 16) 209 | -10/Materials | Entered Mines 308 | -10/Mines | Build established: Mutant 320 | -10/Mines | Learned Materials stockpile data 401 | -10/Mines | Assembled infested the area 406 | -10/Mines | Assisted by a Guerilla fighting off Assembled 509 | -10/Mines | Received a Rocket Launcher from a helpful Derelict 551 | -10/Mines | Discovered new exit (range 6) 559 | -10/Mines | Received a Mining Laser from a helpful Derelict 564 | -10/Mines | Entered Materials 564 | -9/Materials | Accompanied by 1 ally 564 | -9/Materials | Evolved 2 slots: Utility x2 1480 | -9/Materials | Discovered new exit (range 18) 1486 | -9/Materials | Discovered new exit (range 13) 1527 | -9/Materials | Entered Storage 1654 | -9/Storage | Central database locked down 1812 | -9/Storage | Garrison activated, responded to threat 1827 | -9/Storage | Core integrity fell below 50% 1857 | -9/Storage | Core integrity fell below 20% 1869 | -9/Storage | Lost 6 parts (1p2n1u2w) 1951 | -9/Storage | Destroyed by G-34 Mercenary with Small Laser Last Messages --------------- 01897_ U-05 Engineer builds a Wall. 01898_ U-05 Engineer lays Concrete. 01901_ Lgt. Assault Rifle destroyed. 01901_ U-05 Engineer lays Concrete. 01902_ U-05 Engineer builds a Wall. 01902_ U-05 Engineer lays Concrete. 01908_ Sensor Array destroyed. 01915_ Drone released from Drone Bay. 01915_ Drone destroyed. 01916_ Drone released from Drone Bay. 01916_ U-05 Engineer builds a Wall. 01916_ G-34 Mercenary destroyed. 01916_ R-06 Scavenger collects Aluminum Leg. 01918_ Drone retrieved by Drone Bay (no repairs). 01924_ K-01 Serf collects debris. 01947_ Drone released from Drone Bay. 01950_ Drone retrieved by Drone Bay (no repairs). 01950_ G-34 Mercenary destroyed. Map ----- +----------------------------------------------------+ | ???????????????????????????????#"""#?????????????? | | ??????????##############???????#"G"#?????????????? | | ########### # # [ #????####" "#####?????????? | | #????# #?????????? | | ! T #????# #?????????? | | #????# " #?????????? | | ########### [ # #??### ###????????? | | ???????# ##+###### #????????? | | ???????# =%* % # ###????????? | | ???????# = # # #?????????? | | ??????## """ """ # """ ##[ ##?????????? | | ??????#T """ """ # """ ## ## ###??????????? | | ??????## """ """ # """ # #???????????? | | ???????# # """ # ####????????? | | ???????# # """ "==#????????? | | ???????###"T"## ## ## # ==#????????? | | ?????????#"""##### # "==#????????? | | ?????????#####???####" "#### # #T####????????? | | ????????????????????#"R"#??### # ###???????????? | | ????????????????????#"""#?###### #?????????????? | | ????????????????????####### #### #?????????????? | | ????????????????????# ## ##????????????? | | ????????????????????# # % #????????????? | | ????????????????????# # #????????????? | | ????????????????????# !! = g% +????????????? | | ????????????????????# !% @ !% # #????????????? | | ????????????????????# ! g # #????????????? | | ????????????????????# ## ##????????????? | | ????????????????????# ## #?????????????? | | ????????????????????############ #?????????????? | | ???????????????????????????????# #?????????????? | | ???????????????????????????????# #?????????????? | | ???????????????????????????????# #?????????????? | | ???????????????????????????????# #?????????????? | | ???????????????????????????????? #?????????????? | | ???????????????????????????????? #?????????????? | | ???????????????????????????????? #?????????????? | | ???????????????????????????????? #?????????????? | | ???????????????????????????????? #?????????????? | | ???????????????????????????????? #?????????????? | | ????????????????????????????????####?????????????? | | ?????????????????????????????????????????????????? | | ?????????????????????????????????????????????????? | | ?????????????????????????????????????????????????? | | ?????????????????????????????????????????????????? | | ?????????????????????????????????????????????????? | | ?????????????????????????????????????????????????? | | ?????????????????????????????????????????????????? | | ?????????????????????????????????????????????????? | | ?????????????????????????????????????????????????? | +----------------------------------------------------+ Best States ------------- Heat Dissipation 28 Energy Generation 10 Energy Capacity 250 Matter Stores 300 Matter Capacity 300 Sight Range 18 Robot Scan Range 14 Terrain Scan Density 10 Evasion (%) 50 Recoil Reduction 2 Item Schematics ----------------- None Robot Schematics ------------------ None Fabricated ------------ Nothing Repaired ---------- Nothing Studied --------- None Alien Tech Used ----------------- None Achievements -------------- Spot Them First Challenges ------------ None Game ------ Seed FlakMagneticRipper Manual? 0 Play Time 00:21:19 Cumulative 35.5 hours Start 2025.12.14 @ 13:04:59 End 2025.12.14 @ 13:26:15 Sessions 1 Manual Loads 0 Difficulty Rogue Special Mode None Game No. 30 Rogue 30 Adventurer 0 Explorer 0 Win Type - Total 0 Types 0/0/0/0/0/0/0/0/0/0 Lore% 15 Gallery% 23 Achievement% 15 Wizard Run 0 Options --------- Layout 1 ASCII 0 Keyboard 0 Movement Mouse Keybinds 0 Fullscreen 0 Font 20/SmallcapsGlow Map View 50x35 Zoom Use 0% Tactical HUD 1 Map Filters NONE Filters NONE Steam 1 RUN: 20190541-2f22-4680-9979-0441068577a7